bitfinex/quotes_SOLUSD_20241001
["timestamp","ask_amount","ask_price","bid_price","bid_amount"]
[1727773020706,6.3817,156.7,156.66,6.3831]
[1727773024909,6.70876865,156.69,156.65,22.3422]
[1727773025236,6.382,156.69,156.65,22.3422]
[1727773025922,6.70926865,156.68,156.65,15.9587]
[1727773026126,6.3825,156.68,156.65,15.9587]
[1727773026533,16.27996865,156.71,156.63,23.776884]
[1727773026836,6.3825,156.68,156.64,6.3838]
[1727773029021,6.3837,156.65,156.62,6.67365015]
[1727773029342,6.71086865,156.64,156.6,6.3856]
[1727773029523,6.3841,156.64,156.6,6.3856]
[1727773033345,6.3836,156.65,156.6,6.3856]
[1727773033518,0.32676865,156.64,156.6,6.3856]
[1727773033720,0.32676865,156.64,156.6,9.86932953]
[1727773034034,6.3836,156.65,156.61,6.3852]
[1727773040243,0.32676865,156.64,156.61,6.3852]
[1727773041748,6.3836,156.65,156.61,6.3852]
[1727773043140,0.32676865,156.64,156.61,6.3852]
[1727773043937,6.3836,156.65,156.61,6.3852]
[1727773044337,0.32676865,156.64,156.61,6.3852]
[1727773046045,0.32676865,156.64,156.6,3.48147216]
[1727773046234,0.32676865,156.63,156.59,19.44528838]
[1727773046439,0.32676865,156.63,156.59,15.9647]
[1727773046645,6.5893,156.66,156.59,15.9647]
[1727773046952,6.3847,156.63,156.59,22.3507]
[1727773048342,0.32676865,156.62,156.59,22.3507]
[1727773050245,6.3847,156.63,156.59,22.3507]
[1727773052254,6.5893,156.66,156.59,15.9647]
[1727773052459,6.3842,156.64,156.6,6.3854]
[1727773055450,31.4656,156.67,156.6,12.51414812]
[1727773055650,6.3833,156.66,156.62,6.3845]
[1727773057642,6.3833,156.66,156.62,7.66134188]
[1727773057837,15.5082,156.67,156.62,1.27684188]
[1727773058050,6.3829,156.67,156.63,6.3841]
[1727773058752,6.3829,156.67,156.61,15.9629]
[1727773058953,16.42706865,156.66,156.59,3.48002444]
[1727773059171,16.42706865,156.66,156.58,15.9654]
[1727773059460,6.385,156.62,156.58,22.3518]
[1727773062538,6.3846,156.63,156.58,22.3518]
[1727773062849,0.32676865,156.62,156.58,22.3518]
[1727773065260,0.32676865,156.62,156.59,3.48310715]
[1727773066759,6.3846,156.63,156.59,3.48310715]
[1727773066962,6.3842,156.64,156.59,3.48310715]
[1727773067165,6.3837,156.65,156.61,12.51414812]
[1727773067373,6.3837,156.65,156.61,13.79102586]
[1727773068157,6.3837,156.65,156.62,6.3848]
[1727773068541,6.3837,156.65,156.61,18.89924812]
[1727773068741,6.3837,156.65,156.61,6.3851]
[1727773069155,6.3837,156.65,156.61,9.86932547]
[1727773069364,6.3837,156.65,156.61,6.3851]
[1727773070444,6.71086865,156.64,156.6,22.3494]
[1727773070651,6.3841,156.64,156.61,3.48659255]
[1727773070854,6.3841,156.64,156.6,22.3494]
[1727773071662,6.3841,156.64,156.61,3.48655137]
[1727773073554,6.3841,156.64,156.62,3.48927283]
[1727773073756,6.3841,156.64,156.61,3.48655137]
[1727773074752,6.3841,156.64,156.62,3.49043423]
[1727773075044,6.3841,156.64,156.6,22.3494]
[1727773075254,6.3841,156.64,156.61,3.49054371]
[1727773075451,6.3841,156.64,156.6,22.3494]
[1727773075653,6.3841,156.64,156.61,3.49112044]
[1727773075875,6.71126865,156.63,156.59,6.3859]
[1727773076042,6.3845,156.63,156.6,3.49111712]
[1727773076242,6.3845,156.63,156.59,6.3859]
[1727773076243,6.3845,156.63,156.61,3.49111712]
[1727773076459,0.32676865,156.62,156.59,6.3859]
[1727773076766,0.32676865,156.62,156.6,3.4910397]
[1727773077065,0.32676865,156.62,156.61,3.4910397]
[1727773077473,6.3845,156.63,156.61,3.4910397]
[1727773077668,6.3845,156.63,156.59,6.3859]
[1727773077873,6.3845,156.63,156.6,3.49095166]
[1727773078174,6.3845,156.63,156.61,3.49095166]
[1727773078370,6.3845,156.63,156.59,6.3859]
[1727773078670,6.3845,156.63,156.6,3.49095503]
[1727773078859,6.3845,156.63,156.61,3.49095503]
[1727773079058,6.3845,156.63,156.59,6.3859]
[1727773079273,6.3845,156.63,156.6,3.49095373]
[1727773079467,6.3845,156.63,156.61,3.49095373]
[1727773079667,6.3845,156.63,156.59,6.3859]
[1727773079975,6.3845,156.63,156.6,3.49094735]
[1727773080160,6.3845,156.63,156.61,3.49094735]
[1727773080365,6.3845,156.63,156.59,6.3859]
[1727773080556,6.3845,156.63,156.6,3.49102539]
[1727773080861,6.3845,156.63,156.61,3.49102539]
[1727773081053,6.3845,156.63,156.59,6.3859]
[1727773081454,6.3845,156.63,156.57,22.3532]
[1727773081455,6.3853,156.61,156.57,22.3532]
[1727773081847,6.3853,156.61,156.58,3.49102408]
[1727773082050,6.3853,156.61,156.59,3.49102408]
[1727773082252,6.3853,156.61,156.6,3.49102408]
[1727773084574,6.3866,156.58,156.54,22.3578]
[1727773084762,6.3866,156.58,156.55,3.49165322]
[1727773084965,6.3866,156.58,156.56,3.49165322]
[1727773085156,6.3866,156.58,156.57,3.49165322]
[1727773086158,6.3866,156.58,156.54,22.3578]
[1727773086353,6.3866,156.58,156.57,3.4905826]
[1727773087382,0.32676865,156.61,156.51,51.55071355]
[1727773087583,6.3876,156.56,156.52,3.48938197]
[1727773087763,6.3876,156.56,156.53,3.48938197]
[1727773088080,6.3876,156.56,156.54,3.48938197]
[1727773088388,6.3876,156.56,156.55,3.48938197]
[1727773088880,6.3883,156.54,156.52,3.48938197]
[1727773089059,6.3883,156.54,156.53,3.48938197]
[1727773090264,6.3883,156.54,156.51,3.4870961]
[1727773090770,6.3883,156.54,156.5,6.3896]
[1727773091784,6.3878,156.55,156.5,6.3896]
[1727773094290,0.32676865,156.54,156.5,6.3896]
[1727773095282,6.3878,156.55,156.5,6.3896]
[1727773095583,0.32676865,156.54,156.5,6.3896]
[1727773095783,6.3878,156.55,156.5,6.3896]
[1727773097286,6.3878,156.55,156.51,6.3892]
[1727773099260,6.3874,156.56,156.52,6.3889]
[1727773103165,6.3874,156.56,156.5,15.9741]
[1727773103366,6.3874,156.56,156.51,6.3892]
[1727773104875,6.387,156.57,156.53,6.3882]
[1727773105306,22.9638,156.58,156.54,6.3881]
[1727773107793,22.9638,156.58,156.54,7.665628]
[1727773108597,22.9638,156.58,156.54,6.3881]
[1727773110793,16.577,156.58,156.55,6.3876]
[1727773111179,6.3861,156.59,156.55,6.3876]
[1727773114997,15.5509,156.62,156.54,28.48414812]
[1727773115199,6.3861,156.59,156.55,6.3876]
[1727773117700,0.32676865,156.58,156.55,6.3876]
[1727773118601,6.3861,156.59,156.55,6.3876]
[1727773128812,15.5509,156.62,156.57,12.51414812]
[1727773128997,15.5509,156.62,156.58,18.90024812]
[1727773128998,21.936,156.62,156.58,18.90024812]
[1727773129194,21.936,156.62,156.58,20.17741773]
[1727773129399,15.5509,156.62,156.6,6.3853]
[1727773129603,15.5509,156.62,156.59,34.86524812]
[1727773129801,15.5509,156.62,156.59,22.3511]
[1727773130006,15.5509,156.62,156.59,15.9652]
[1727773130303,15.5509,156.62,156.59,22.3512]
[1727773130489,15.5509,156.62,156.59,23.62828716]
[1727773130989,15.5509,156.62,156.59,22.3512]
[1727773131298,15.5509,156.62,156.59,23.62829353]
[1727773131487,15.5509,156.62,156.59,22.3512]
[1727773133298,15.5509,156.62,156.6,1.27709426]
[1727773133501,15.5509,156.62,156.6,7.66269426]
[1727773133702,15.5509,156.62,156.6,18.89974812]
[1727773134228,15.5509,156.62,156.61,6.3852]
[1727773134716,15.5509,156.62,156.6,12.51414812]
[1727773134922,15.5509,156.62,156.6,18.89964812]
[1727773135217,15.5509,156.62,156.6,6.3855]
[1727773136793,6.3837,156.65,156.6,6.3855]
[1727773137416,6.3837,156.65,156.6,18.89964812]
[1727773137717,6.3837,156.65,156.61,6.385]
[1727773138299,6.3837,156.65,156.61,7.66185852]
[1727773139220,6.3837,156.65,156.61,6.385]
[1727773140707,6.384,156.64,156.6,6.3855]
[1727773141789,6.3838,156.65,156.6,6.3855]
[1727773141994,6.3838,156.65,156.61,6.385]
[1727773142914,6.3835,156.66,156.61,6.385]
[1727773144015,6.3835,156.66,156.61,12.51414812]
[1727773144218,6.383,156.67,156.63,6.3842]
[1727773144421,6.3825,156.68,156.64,7.66053807]
[1727773145315,6.3825,156.68,156.63,34.85884812]
[1727773145517,6.3829,156.67,156.64,1.27665981]
[1727773145723,6.3829,156.67,156.63,34.85884812]
[1727773145911,6.3829,156.67,156.64,1.27664624]
[1727773146110,6.3829,156.67,156.64,1.27665918]
[1727773146709,6.3829,156.67,156.63,22.3447]
[1727773149235,15.9537,156.71,156.59,31.9301]
[1727773149428,6.3836,156.66,156.62,6.3847]
[1727773149606,6.3836,156.66,156.62,18.89884812]
[1727773150311,15.9537,156.71,156.62,12.51414812]
[1727773150508,6.3829,156.67,156.63,6.3844]
[1727773154323,6.3825,156.68,156.64,7.66050708]
[1727773154525,15.9537,156.71,156.64,1.27660708]
[1727773154826,6.3821,156.69,156.65,6.3836]
[1727773155205,15.9537,156.71,156.64,1.27660708]
[1727773155400,15.9537,156.71,156.63,12.51414812]
[1727773155631,6.3821,156.69,156.65,6.3835]
[1727773156126,6.3816,156.7,156.66,7.65946405]
[1727773156432,15.9506,156.74,156.64,28.47404812]
[1727773156913,15.9506,156.74,156.65,23.776884]
[1727773157119,6.382,156.69,156.65,30.160284]
[1727773158505,15.9506,156.74,156.65,30.160284]
[1727773158708,6.3817,156.7,156.65,30.160284]
[1727773158906,6.3817,156.7,156.66,20.17362083]
[1727773159108,6.3817,156.7,156.66,18.89724812]
[1727773163006,6.3817,156.7,156.67,1.27636892]
[1727773163833,6.3817,156.7,156.66,18.89724812]
[1727773164440,6.3817,156.7,156.66,6.3831]
[1727773164634,0.32676865,156.73,156.65,36.29103212]
[1727773164836,6.382,156.69,156.65,30.160384]
[1727773167813,6.382,156.69,156.65,6.3835]
[1727773172637,6.382,156.69,156.65,7.65997202]
[1727773173417,6.382,156.69,156.65,6.3835]
[1727773176614,6.382,156.69,156.65,18.89764812]
[1727773177429,6.382,156.69,156.65,6.3835]
[1727773177737,0.32676865,156.73,156.64,22.3273]
[1727773177937,0.32676865,156.73,156.64,28.711]
[1727773177938,6.3827,156.68,156.64,28.711]
[1727773179649,6.3821,156.69,156.65,6.3836]
[1727773187454,6.3821,156.69,156.65,7.66010802]
[1727773187627,6.3821,156.69,156.65,11.14319675]
[1727773188332,6.3821,156.69,156.65,7.66010802]
[1727773188645,6.3821,156.69,156.65,6.3836]
[1727773190132,6.3821,156.69,156.65,7.66012178]
[1727773190450,6.3817,156.7,156.66,9.86947598]
[1727773190655,6.3817,156.7,156.66,6.3831]
[1727773198154,6.3817,156.7,156.67,3.4888825]
[1727773198355,6.3817,156.7,156.66,6.3831]
[1727773199942,6.3817,156.7,156.67,3.48998518]
[1727773200247,15.9525,156.72,156.64,22.3273]
[1727773200469,6.382,156.69,156.67,3.48934818]
[1727773200636,15.9525,156.72,156.67,3.48934818]
[1727773200637,6.70916865,156.68,156.67,3.48934818]
[1727773200838,6.3824,156.68,156.67,3.48934818]
[1727773201671,6.382,156.69,156.67,3.48934818]
[1727773202439,31.6237,156.75,156.67,3.48934818]
[1727773202762,6.3812,156.71,156.67,9.87204818]
[1727773203166,6.3812,156.71,156.67,11.14846418]
[1727773203540,6.3812,156.71,156.67,4.76576418]
[1727773203745,6.3812,156.71,156.67,3.48934818]
[1727773203943,6.3808,156.72,156.68,7.65881342]
[1727773204160,6.3808,156.72,156.68,6.3824]
[1727773204339,6.3804,156.73,156.69,3.49066508]
[1727773204542,0.32676865,156.74,156.68,12.51414812]
[1727773204743,0.32676865,156.74,156.69,3.4906641]
[1727773204944,0.32676865,156.74,156.67,3.48934818]
[1727773205143,0.32676865,156.74,156.68,3.49059614]
[1727773205357,6.381,156.72,156.69,3.49059614]
[1727773205569,6.70826865,156.71,156.67,6.3827]
[1727773205772,6.3823,156.69,156.68,3.49023172]
[1727773206072,0.32676865,156.7,156.64,6.3674]
[1727773206073,6.3826,156.68,156.64,6.3674]
[1727773206555,6.3826,156.68,156.65,3.49098809]
[1727773206751,6.3831,156.67,156.64,6.3674]
[1727773206964,6.3832,156.66,156.65,3.49095252]
[1727773207465,6.3836,156.65,156.64,6.3674]
[1727773207963,0.32676865,156.68,156.64,9.85779865]
[1727773208163,6.3833,156.66,156.64,6.3674]
[1727773208340,6.3829,156.67,156.64,6.3674]
[1727773209167,15.9524,156.72,156.64,6.3674]
[1727773209352,6.3829,156.67,156.64,6.3674]
[1727773209875,6.3833,156.66,156.64,6.3674]
[1727773210163,6.3829,156.67,156.64,6.3674]
[1727773210751,6.3836,156.65,156.64,6.3674]
[1727773210953,15.9543,156.7,156.64,6.3674]
[1727773211260,6.3833,156.66,156.64,6.3674]
[1727773212660,15.9543,156.7,156.64,6.3674]
[1727773212861,31.9021,156.73,156.64,6.3674]
[1727773212862,6.3825,156.68,156.64,6.3674]
[1727773213070,47.8536,156.73,156.64,6.3674]
[1727773213071,6.3821,156.69,156.65,1.27661696]
[1727773213271,6.3821,156.69,156.65,7.66001696]
[1727773213774,6.3821,156.69,156.65,7.65994194]
[1727773213961,6.3821,156.69,156.65,6.3834]
[1727773214158,6.3821,156.69,156.65,7.65993743]
[1727773214361,6.3821,156.69,156.65,6.3834]
[1727773214662,6.3824,156.68,156.64,22.3436]
[1727773214858,6.3824,156.68,156.65,3.48743863]
[1727773215059,6.3824,156.68,156.64,22.3436]
[1727773215263,6.3824,156.68,156.65,3.48743863]
[1727773215476,6.3824,156.68,156.64,22.3436]
[1727773215780,6.3824,156.68,156.65,3.48742838]
[1727773215992,6.3824,156.68,156.64,22.3436]
[1727773217997,6.3824,156.68,156.65,3.48739431]
[1727773218197,6.3824,156.68,156.64,22.3436]
[1727773218480,6.3824,156.68,156.65,3.48740937]
[1727773218680,6.3824,156.68,156.64,22.3436]
[1727773219477,6.3824,156.68,156.65,3.4874296]
[1727773219673,6.3824,156.68,156.64,22.3436]
[1727773219865,6.3824,156.68,156.65,3.48749678]
[1727773220079,6.3824,156.68,156.64,22.3436]
[1727773220666,6.3824,156.68,156.65,3.48752559]
[1727773220865,15.9515,156.73,156.65,9.87112559]
[1727773221085,15.9515,156.73,156.65,6.3836]
[1727773221086,6.3821,156.69,156.65,6.3836]
[1727773221871,6.3829,156.67,156.63,6.3843]
[1727773222084,6.3829,156.67,156.64,3.4876706]
[1727773222262,6.3829,156.67,156.65,3.4876706]
[1727773222588,6.3829,156.67,156.63,6.3843]
[1727773222790,0.32676865,156.7,156.64,3.48782126]
[1727773223093,0.32676865,156.7,156.65,3.48782126]
[1727773223094,6.3825,156.68,156.65,3.48782126]
[1727773223388,6.3825,156.68,156.63,6.3843]
[1727773223772,6.3825,156.68,156.64,3.48793567]
[1727773224173,6.3825,156.68,156.65,3.48793567]
[1727773224376,6.3825,156.68,156.63,6.3843]
[1727773224680,6.3825,156.68,156.64,3.48792378]
[1727773224871,6.3825,156.68,156.65,3.48792378]
[1727773225074,6.3825,156.68,156.63,6.3843]
[1727773225275,6.3825,156.68,156.64,3.4879244]
[1727773225476,6.3825,156.68,156.63,6.3843]
[1727773225682,6.3825,156.68,156.64,3.48804482]
[1727773225985,6.3825,156.68,156.63,6.3843]
[1727773226173,6.3825,156.68,156.64,3.48805342]
[1727773226377,6.3825,156.68,156.63,6.3843]
[1727773226581,6.3825,156.68,156.64,3.48797957]
[1727773226988,6.3825,156.68,156.63,6.3843]
[1727773227474,6.3825,156.68,156.64,3.48798997]
[1727773227672,0.32676865,156.7,156.63,6.3843]
[1727773227973,6.3829,156.67,156.64,3.4878794]
[1727773228193,6.3829,156.67,156.63,6.3843]
[1727773228391,6.3829,156.67,156.64,3.48780714]
[1727773228603,6.3829,156.67,156.63,6.3843]
[1727773228791,6.3829,156.67,156.64,3.48780165]
[1727773228974,6.3829,156.67,156.63,6.3843]
[1727773229177,6.3829,156.67,156.64,3.48780147]
[1727773229376,6.3829,156.67,156.63,6.3843]
[1727773229590,6.3829,156.67,156.64,3.48773529]
[1727773229899,6.3829,156.67,156.63,6.3843]
[1727773230315,6.3829,156.67,156.64,3.48773028]
[1727773230792,6.3829,156.67,156.63,6.3843]
[1727773231013,6.3829,156.67,156.64,3.48769325]
[1727773231177,6.3829,156.67,156.63,6.3843]
[1727773231496,6.3829,156.67,156.64,3.48758648]
[1727773231697,6.3829,156.67,156.63,6.3843]
[1727773231904,6.3829,156.67,156.64,3.48756625]
[1727773232071,6.3829,156.67,156.63,6.3843]
[1727773232275,6.3825,156.68,156.64,3.48756625]
[1727773232499,6.3825,156.68,156.63,6.3843]
[1727773232699,6.3825,156.68,156.64,3.48753794]
[1727773232876,6.3825,156.68,156.63,6.3843]
[1727773233077,6.3825,156.68,156.64,3.48753794]
[1727773233279,6.3825,156.68,156.63,6.3843]
[1727773233979,6.3825,156.68,156.64,3.48751453]
[1727773234180,6.3825,156.68,156.63,6.3843]
[1727773234402,6.3825,156.68,156.64,11.14800727]
[1727773234611,6.3825,156.68,156.64,6.3839]
[1727773239287,0.32676865,156.7,156.63,15.9608]
[1727773239496,6.3828,156.67,156.63,22.3451]
[1727773248606,0.32676865,156.66,156.6,6.67959021]
[1727773248807,24.10365265,156.7,156.56,12.51414812]
[1727773249194,24.10365265,156.7,156.56,6.66256794]
[1727773249510,24.10365265,156.7,156.56,19.17671606]
[1727773249704,23.776884,156.68,156.56,19.17671606]
[1727773249914,15.6802,156.66,156.57,12.51414812]
[1727773250094,6.3852,156.62,156.58,6.3863]
[1727773250896,0.32676865,156.65,156.57,28.48064812]
[1727773251120,6.3846,156.63,156.59,6.386]
[1727773255597,6.3853,156.61,156.57,15.9665]
[1727773258732,6.3853,156.61,156.57,22.3532]
[1727773261927,16.28826865,156.63,156.56,6.66256794]
[1727773262135,22.1293,156.57,156.49,39.58430225]
[1727773262321,22.1293,156.57,156.51,15.9728]
[1727773262635,22.1293,156.57,156.53,6.3884]
[1727773264417,6.3875,156.56,156.52,6.3888]
[1727773268338,22.1294,156.57,156.53,7.66586664]
[1727773268737,22.1294,156.57,156.53,6.3884]
[1727773272822,15.7424,156.57,156.54,7.66535637]
[1727773273141,22.1293,156.57,156.53,22.3594]
[1727773276551,6.3877,156.55,156.51,6.389]
[1727773277349,6.3877,156.55,156.51,18.90314812]
[1727773278045,6.3877,156.55,156.52,23.776884]
[1727773279630,6.3874,156.56,156.53,1.27747809]
[1727773279831,22.1293,156.57,156.53,7.66587809]
[1727773280030,22.1293,156.57,156.53,6.3884]
[1727773280551,6.3878,156.55,156.52,15.9721]
[1727773281048,22.1294,156.57,156.53,1.27745901]
[1727773281851,22.1294,156.57,156.52,22.361]
[1727773282732,22.1294,156.57,156.53,1.27740672]
[1727773282935,22.1294,156.57,156.53,7.66580672]
[1727773283548,15.7424,156.57,156.54,30.164884]
[1727773284135,22.1293,156.57,156.53,30.165284]
[1727773284656,6.3876,156.56,156.52,6.3889]
[1727773285128,6.3877,156.55,156.51,30.166084]
[1727773288428,6.3885,156.54,156.51,23.776884]
[1727773290239,15.7424,156.57,156.51,23.776884]
[1727773290446,6.3874,156.56,156.52,20.18055782]
[1727773292743,6.3884,156.54,156.49,25.56773279]
[1727773293143,6.3884,156.54,156.5,6.3896]
[1727773295141,6.3884,156.54,156.51,25.05448031]
[1727773295339,6.3884,156.54,156.51,31.44378031]
[1727773296060,6.3876,156.56,156.52,6.3889]
[1727773296234,6.3876,156.56,156.53,1.27748256]
[1727773296831,15.7424,156.57,156.52,1.27748277]
[1727773297151,0.32676865,156.56,156.5,15.9739]
[1727773297748,6.3884,156.54,156.5,22.3636]
[1727773298137,15.7424,156.57,156.51,25.05452251]
[1727773298657,6.3876,156.56,156.51,31.44352251]
[1727773298830,6.3877,156.55,156.51,31.44352251]
[1727773299033,22.1296,156.57,156.52,22.3608]
[1727773299248,15.7424,156.57,156.53,1.27748316]
[1727773299445,6.3874,156.56,156.52,22.3608]
[1727773300145,6.3874,156.56,156.52,15.972]
[1727773301950,6.3883,156.54,156.5,6.3896]
[1727773302160,6.3874,156.56,156.52,6.3888]
[1727773303259,6.3874,156.56,156.51,6.3892]
[1727773303437,6.3874,156.56,156.51,9.87499069]
[1727773303638,15.7424,156.57,156.52,23.776884]
[1727773303838,15.7424,156.57,156.52,30.165684]
[1727773304068,6.3874,156.56,156.52,30.165684]
[1727773305267,22.1294,156.57,156.53,7.66592191]
[1727773305643,22.1294,156.57,156.53,6.3885]
[1727773305860,6.388,156.55,156.51,22.3624]
[1727773306158,6.388,156.55,156.52,3.48919867]
[1727773306464,6.388,156.55,156.51,22.3624]
[1727773307461,6.388,156.55,156.52,3.49167484]
[1727773307640,6.3874,156.56,156.52,6.3888]
[1727773308361,15.7424,156.57,156.53,9.88059509]
[1727773308362,22.1294,156.57,156.53,9.88059509]
[1727773308538,22.1294,156.57,156.53,9.88059209]
[1727773308739,6.3873,156.56,156.53,3.49209209]
[1727773308947,6.3873,156.56,156.52,6.3888]
[1727773309945,15.7424,156.57,156.52,23.776884]
[1727773310145,6.3877,156.55,156.52,23.776884]
[1727773310853,15.7424,156.57,156.54,30.164984]
[1727773311158,22.1293,156.57,156.54,23.776884]
[1727773311555,15.7424,156.57,156.54,30.164984]
[1727773311766,15.2744,156.61,156.56,23.776884]
[1727773312469,6.3854,156.61,156.57,1.27708795]
[1727773312641,31.2341,156.65,156.57,1.27708795]
[1727773312642,6.3849,156.62,156.58,7.66308784]
[1727773312837,6.3849,156.62,156.58,6.3861]
[1727773314264,6.3849,156.62,156.58,9.87115756]
[1727773315248,6.3849,156.62,156.58,6.3861]
[1727773315766,6.3847,156.63,156.59,7.662936]
[1727773315970,21.6581,156.65,156.6,30.162184]
[1727773316439,21.32051454,156.65,156.6,30.162184]
[1727773317761,6.3832,156.66,156.62,6.3847]
[1727773318068,6.3829,156.67,156.63,1.27661883]
[1727773318269,6.3829,156.67,156.63,6.3843]
[1727773319159,6.3821,156.69,156.65,6.3835]
[1727773319347,6.3816,156.7,156.66,7.65959092]
[1727773319973,6.3812,156.71,156.66,7.65959092]
[1727773320354,6.3812,156.71,156.67,30.159584]
[1727773320665,6.3808,156.72,156.68,6.3823]
[1727773320869,6.3808,156.72,156.66,36.29103212]
[1727773321078,6.3808,156.72,156.68,23.776884]
[1727773321644,15.9474,156.77,156.68,23.776884]
[1727773321645,6.3804,156.73,156.69,1.27615984]
[1727773321845,6.3804,156.73,156.69,23.776884]
[1727773322450,6.3804,156.73,156.69,6.382]
[1727773322864,6.3804,156.73,156.68,23.776884]
[1727773323074,6.3804,156.73,156.68,30.159184]
[1727773323666,6.38,156.74,156.7,30.158384]
[1727773323868,6.38,156.74,156.71,1.27597602]
[1727773324556,15.8506,156.79,156.71,1.27597602]
[1727773324755,6.3795,156.75,156.71,1.27597602]
[1727773325573,6.3795,156.75,156.72,23.776884]
[1727773325778,15.8506,156.79,156.73,1.27587037]
[1727773326154,15.8506,156.79,156.72,23.776884]
[1727773326155,6.3798,156.75,156.72,23.776884]
[1727773327583,15.8506,156.79,156.69,6.3819]
[1727773327584,16.27326865,156.78,156.69,6.3819]
[1727773327761,6.3804,156.73,156.7,23.776884]
[1727773328164,15.9485,156.76,156.67,6.4184]
[1727773328364,6.3812,156.71,156.67,6.3828]
[1727773328579,6.3808,156.72,156.67,6.3828]
[1727773330183,6.3808,156.72,156.68,23.776884]
[1727773332574,6.3808,156.72,156.68,30.159184]
[1727773333808,6.3805,156.73,156.68,30.159184]
[1727773334515,15.8506,156.79,156.68,36.29103212]
[1727773334703,6.38,156.74,156.7,30.158384]
[1727773334907,6.38,156.74,156.71,1.27595078]
[1727773335123,6.38,156.74,156.7,30.158384]
[1727773335495,31.7961,156.79,156.72,23.776884]
[1727773335702,6.3795,156.76,156.72,30.157584]
[1727773337120,6.3788,156.77,156.72,30.157584]
[1727773337418,6.3788,156.77,156.74,23.776884]
[1727773339216,22.2288,156.79,156.75,1.27565288]
[1727773339516,22.2288,156.79,156.76,23.776884]
[1727773339704,22.2288,156.79,156.74,18.89374812]
[1727773339705,22.2288,156.79,156.75,23.776884]
[1727773339904,22.2288,156.79,156.74,23.776884]
[1727773340114,22.2288,156.79,156.76,23.776884]
[1727773340511,15.8506,156.79,156.75,23.776884]
[1727773340703,6.3783,156.78,156.75,23.776884]
[1727773342725,15.8506,156.79,156.74,23.776884]
[1727773342898,22.2286,156.79,156.76,23.776884]
[1727773343328,15.4231,156.84,156.76,30.107884]
[1727773343624,6.3775,156.81,156.78,23.776884]
[1727773346430,6.3768,156.82,156.78,30.155184]
[1727773346913,6.3768,156.82,156.78,42.66933212]
[1727773347315,21.7994,156.84,156.79,18.89194812]
[1727773347616,6.3764,156.83,156.8,23.776884]
[1727773348126,15.4231,156.84,156.8,23.776884]
[1727773348546,21.799,156.84,156.8,30.154384]
[1727773352220,6.3764,156.83,156.8,23.776884]
[1727773352940,6.3768,156.82,156.8,23.776884]
[1727773353121,6.3768,156.82,156.79,23.776884]
[1727773355215,15.4231,156.84,156.79,23.776884]
[1727773355422,6.3764,156.83,156.8,23.776884]
[1727773355813,6.3772,156.81,156.79,23.776884]
[1727773356532,6.3779,156.8,156.75,22.328]
[1727773356706,6.3779,156.8,156.76,6.3791]
[1727773357113,31.3632,156.84,156.77,20.16811036]
[1727773357114,6.3771,156.81,156.77,20.16811036]
[1727773357313,6.3771,156.81,156.77,18.89264812]
[1727773357830,6.3771,156.81,156.78,23.776884]
[1727773358222,6.3768,156.82,156.78,30.155184]
[1727773358804,31.3632,156.84,156.78,23.776884]
[1727773359025,6.3774,156.81,156.78,23.776884]
[1727773363811,0.32676865,156.83,156.78,23.776884]
[1727773364030,6.3786,156.78,156.74,6.3798]
[1727773364211,0.32676865,156.81,156.74,3.46679633]
[1727773364406,6.3787,156.77,156.73,9.84689633]
[1727773364631,6.3785,156.78,156.74,6.3799]
[1727773365226,6.3785,156.78,156.74,9.84669633]
[1727773365432,6.3779,156.79,156.75,30.156284]
[1727773374828,6.3795,156.76,156.73,6.67503867]
[1727773375135,15.9283,156.78,156.75,6.3794]
[1727773375320,15.9283,156.78,156.76,1.27560471]
[1727773376439,22.1594,156.83,156.77,30.155584]
[1727773376440,6.3772,156.81,156.77,30.155584]
[1727773376628,6.3772,156.81,156.78,1.27537387]
[1727773376828,48.3322235,156.86,156.77,30.155584]